[Event "Titled Tuesday Blitz August 15 Late 2023"]
[White "Vila Dupla, Aurelio"]
[Black "Jahnz, Fabian"]
[WhiteFideId "2203383"]
[BlackFideId "4653300"]
[WhiteElo "2130"]
[BlackElo "2326"]
[Result "1-0"]
[Round "8"]
[TimeControl "180+1"]
[Date "2023.08.15"]
[WhiteClock "0:00:30"]
[BlackClock "0:00:09"]
[Board "122"]

1. Nf3 {[%clk 0:03:00]}  d5 {[%clk 0:02:59]} 2. d4 {[%clk 0:03:00]}  Bf5 {[%clk 0:02:59]} 3. c4 {[%clk 0:02:59]}  e6 {[%clk 0:02:59]} 4. cxd5 {[%clk 0:02:59]}  exd5 {[%clk 0:03:00]} 5. Qb3 {[%clk 0:02:59]}  b6 {[%clk 0:02:50]} 6. Nc3 {[%clk 0:02:57]}  c6 {[%clk 0:02:48]} 7. Ne5 {[%clk 0:02:49]}  Bd6 {[%clk 0:02:43]} 8. e4 {[%clk 0:02:46]}  Bxe5 {[%clk 0:02:37]} 9. dxe5 {[%clk 0:02:45]}  Bxe4 {[%clk 0:02:30]} 10. Nxe4 {[%clk 0:02:44]}  dxe4 {[%clk 0:02:28]} 11. Bc4 {[%clk 0:02:42]}  Qe7 {[%clk 0:02:21]} 12. Bf4 {[%clk 0:02:31]}  b5 {[%clk 0:02:19]} 13. Be2 {[%clk 0:02:31]}  Nd7 {[%clk 0:02:16]} 14. Qc3 {[%clk 0:02:20]}  Qe6 {[%clk 0:01:52]} 15. O-O {[%clk 0:02:12]}  Ne7 {[%clk 0:01:52]} 16. h3 {[%clk 0:02:05]}  O-O {[%clk 0:01:51]} 17. Bg4 {[%clk 0:02:05]}  Nf5 {[%clk 0:01:26]} 18. Rfd1 {[%clk 0:01:59]}  g6 {[%clk 0:01:21]} 19. Rd6 {[%clk 0:01:58]}  Qe7 {[%clk 0:01:19]} 20. Bxf5 {[%clk 0:01:25]}  gxf5 {[%clk 0:01:20]} 21. Rad1 {[%clk 0:01:24]}  Nb6 {[%clk 0:01:17]} 22. Bh6 {[%clk 0:01:24]}  Kh8 {[%clk 0:01:03]} 23. Bxf8 {[%clk 0:01:12]}  Rxf8 {[%clk 0:01:04]} 24. e6+ {[%clk 0:01:02]}  f6 {[%clk 0:01:04]} 25. Qxc6 {[%clk 0:01:02]}  Rc8 {[%clk 0:00:57]} 26. Qxb5 {[%clk 0:00:54]}  Kg7 {[%clk 0:00:43]} 27. Qxf5 {[%clk 0:00:52]}  e3 {[%clk 0:00:38]} 28. fxe3 {[%clk 0:00:47]}  Rc7 {[%clk 0:00:33]} 29. e4 {[%clk 0:00:42]}  Kh8 {[%clk 0:00:23]} 30. e5 {[%clk 0:00:41]}  Nc4 {[%clk 0:00:16]} 31. exf6 {[%clk 0:00:32]}  Nxd6 {[%clk 0:00:09]} 32. fxe7 {[%clk 0:00:30]} 1-0


[Site "https://www.chess.com"]

[Event "Titled Tuesday Blitz August 15 Late 2023"]
[White "Verony64"]
[Black "KSho99"]
[WhiteElo "2122"]
[BlackElo "2197"]
[Result "1/2-1/2"]
[Round "8"]
[TimeControl "180+1"]
[Date "2023.08.15"]
[WhiteClock "0:00:12"]
[BlackClock "0:00:05"]
[Board "124"]

1. d4 {[%clk 0:03:00]}  f5 {[%clk 0:02:59]} 2. g4 {[%clk 0:02:59]}  fxg4 {[%clk 0:02:56]} 3. h3 {[%clk 0:02:59]}  d5 {[%clk 0:02:56]} 4. hxg4 {[%clk 0:02:56]}  Bxg4 {[%clk 0:02:55]} 5. Bg2 {[%clk 0:02:57]}  Nf6 {[%clk 0:02:54]} 6. Nc3 {[%clk 0:02:57]}  e6 {[%clk 0:02:49]} 7. Bg5 {[%clk 0:02:57]}  Be7 {[%clk 0:02:45]} 8. Qd2 {[%clk 0:02:57]}  Nc6 {[%clk 0:02:43]} 9. O-O-O {[%clk 0:02:51]}  Qd7 {[%clk 0:02:41]} 10. Nf3 {[%clk 0:02:48]}  O-O-O {[%clk 0:02:26]} 11. Kb1 {[%clk 0:02:48]}  Bf5 {[%clk 0:02:25]} 12. Bf4 {[%clk 0:02:33]}  Bb4 {[%clk 0:02:20]} 13. Ne5 {[%clk 0:02:28]}  Nxe5 {[%clk 0:02:15]} 14. Bxe5 {[%clk 0:02:23]}  Qc6 {[%clk 0:02:04]} 15. a3 {[%clk 0:02:17]}  Bxc3 {[%clk 0:02:03]} 16. Qxc3 {[%clk 0:02:18]}  Qxc3 {[%clk 0:02:02]} 17. bxc3 {[%clk 0:02:18]}  Rd7 {[%clk 0:01:58]} 18. Rdg1 {[%clk 0:02:17]}  Bg6 {[%clk 0:01:50]} 19. Bh3 {[%clk 0:02:16]}  Re7 {[%clk 0:01:47]} 20. Bxe6+ {[%clk 0:02:14]}  Rxe6 {[%clk 0:01:44]} 21. Rxg6 {[%clk 0:02:14]}  Rg8 {[%clk 0:01:08]} 22. Rg2 {[%clk 0:02:04]}  Ne4 {[%clk 0:01:06]} 23. Rxh7 {[%clk 0:02:00]}  Nxc3+ {[%clk 0:01:05]} 24. Kb2 {[%clk 0:01:58]}  Nxe2 {[%clk 0:00:54]} 25. f4 {[%clk 0:01:54]}  Rb6+ {[%clk 0:00:50]} 26. Ka1 {[%clk 0:01:42]}  Nc3 {[%clk 0:00:50]} 27. Rg1 {[%clk 0:01:41]}  Ne2 {[%clk 0:00:31]} 28. Re1 {[%clk 0:01:33]}  Nc3 {[%clk 0:00:28]} 29. Rh3 {[%clk 0:01:32]}  Ne4 {[%clk 0:00:27]} 30. Rg1 {[%clk 0:01:24]}  g5 {[%clk 0:00:23]} 31. Rh7 {[%clk 0:01:20]}  Rc6 {[%clk 0:00:21]} 32. Kb2 {[%clk 0:01:14]}  g4 {[%clk 0:00:17]} 33. f5 {[%clk 0:00:59]}  Nf6 {[%clk 0:00:15]} 34. Rf7 {[%clk 0:00:53]}  Nd7 {[%clk 0:00:12]} 35. Rg3 {[%clk 0:00:47]}  b6 {[%clk 0:00:06]} 36. Rh7 {[%clk 0:00:45]}  Rg5 {[%clk 0:00:06]} 37. Rh8+ {[%clk 0:00:43]}  Kb7 {[%clk 0:00:06]} 38. Rh4 {[%clk 0:00:32]}  Rxf5 {[%clk 0:00:05]} 39. Rhxg4 {[%clk 0:00:33]}  Nxe5 {[%clk 0:00:05]} 40. dxe5 {[%clk 0:00:32]}  Rxe5 {[%clk 0:00:06]} 41. Rg2 {[%clk 0:00:29]}  Re3 {[%clk 0:00:06]} 42. Rd4 {[%clk 0:00:28]}  Rcc3 {[%clk 0:00:02]} 43. Rxd5 {[%clk 0:00:26]}  Rxa3 {[%clk 0:00:03]} 44. Rg7 {[%clk 0:00:25]}  Rac3 {[%clk 0:00:03]} 45. Rd4 {[%clk 0:00:22]}  Rc6 {[%clk 0:00:03]} 46. Rd2 {[%clk 0:00:21]}  Rec3 {[%clk 0:00:03]} 47. Rgd7 {[%clk 0:00:21]}  R3c5 {[%clk 0:00:03]} 48. R7d3 {[%clk 0:00:20]}  Rb5+ {[%clk 0:00:03]} 49. Kc1 {[%clk 0:00:21]}  Rc4 {[%clk 0:00:03]} 50. Re2 {[%clk 0:00:21]}  Ra5 {[%clk 0:00:03]} 51. Kd2 {[%clk 0:00:21]}  Ra2 {[%clk 0:00:03]} 52. Kd1 {[%clk 0:00:20]}  Ra1+ {[%clk 0:00:03]} 53. Kd2 {[%clk 0:00:20]}  Ra2 {[%clk 0:00:03]} 54. Kc1 {[%clk 0:00:19]}  a5 {[%clk 0:00:04]} 55. Kb1 {[%clk 0:00:19]}  Raa4 {[%clk 0:00:04]} 56. Rb3 {[%clk 0:00:19]}  Rab4 {[%clk 0:00:04]} 57. Ka2 {[%clk 0:00:18]}  Rxb3 {[%clk 0:00:04]} 58. cxb3 {[%clk 0:00:19]}  Rc5 {[%clk 0:00:04]} 59. Rd2 {[%clk 0:00:19]}  Ka6 {[%clk 0:00:05]} 60. Rd4 {[%clk 0:00:17]}  c6 {[%clk 0:00:05]} 61. Rf4 {[%clk 0:00:17]}  b5 {[%clk 0:00:05]} 62. Rf8 {[%clk 0:00:18]}  Kb6 {[%clk 0:00:05]} 63. Rb8+ {[%clk 0:00:18]}  Ka7 {[%clk 0:00:05]} 64. Rf8 {[%clk 0:00:17]}  Rc2+ {[%clk 0:00:06]} 65. Kb1 {[%clk 0:00:16]}  Rc3 {[%clk 0:00:06]} 66. Rf7+ {[%clk 0:00:17]}  Kb6 {[%clk 0:00:05]} 67. Kb2 {[%clk 0:00:17]}  Rh3 {[%clk 0:00:05]} 68. Rf8 {[%clk 0:00:17]}  b4 {[%clk 0:00:05]} 69. Rf5 {[%clk 0:00:16]}  c5 {[%clk 0:00:05]} 70. Rf6+ {[%clk 0:00:17]}  Kb5 {[%clk 0:00:06]} 71. Rf8 {[%clk 0:00:18]}  Rh2+ {[%clk 0:00:06]} 72. Kb1 {[%clk 0:00:18]}  a4 {[%clk 0:00:06]} 73. Rb8+ {[%clk 0:00:18]}  Kc6 {[%clk 0:00:06]} 74. bxa4 {[%clk 0:00:17]}  Kd5 {[%clk 0:00:06]} 75. Rc8 {[%clk 0:00:17]}  Kc4 {[%clk 0:00:05]} 76. a5 {[%clk 0:00:16]}  Kb3 {[%clk 0:00:06]} 77. Kc1 {[%clk 0:00:17]}  c4 {[%clk 0:00:06]} 78. a6 {[%clk 0:00:16]}  c3 {[%clk 0:00:06]} 79. Kd1 {[%clk 0:00:17]}  Rh1+ {[%clk 0:00:06]} 80. Ke2 {[%clk 0:00:16]}  Ra1 {[%clk 0:00:06]} 81. Rc6 {[%clk 0:00:16]}  c2 {[%clk 0:00:06]} 82. Kd2 {[%clk 0:00:17]}  Ra2 {[%clk 0:00:03]} 83. Kc1 {[%clk 0:00:16]}  Ra1+ {[%clk 0:00:03]} 84. Kd2 {[%clk 0:00:16]}  Ra5 {[%clk 0:00:03]} 85. Rxc2 {[%clk 0:00:13]}  Rd5+ {[%clk 0:00:02]} 86. Kc1 {[%clk 0:00:12]}  Ra5 {[%clk 0:00:03]} 87. Rb2+ {[%clk 0:00:13]}  Kc4 {[%clk 0:00:03]} 88. Rc2+ {[%clk 0:00:14]}  Kb5 {[%clk 0:00:03]} 89. Rb2 {[%clk 0:00:13]}  Rxa6 {[%clk 0:00:04]} 90. Kc2 {[%clk 0:00:13]}  Ra3 {[%clk 0:00:04]} 91. Kb1 {[%clk 0:00:14]}  Rg3 {[%clk 0:00:04]} 92. Re2 {[%clk 0:00:13]}  Ka4 {[%clk 0:00:04]} 93. Kb2 {[%clk 0:00:12]}  Rf3 {[%clk 0:00:04]} 94. Rd2 {[%clk 0:00:13]}  Rb3+ {[%clk 0:00:04]} 95. Kc2 {[%clk 0:00:12]}  Ra3 {[%clk 0:00:04]} 96. Kb2 {[%clk 0:00:12]}  Rh3 {[%clk 0:00:03]} 97. Re2 {[%clk 0:00:11]}  Rh4 {[%clk 0:00:03]} 98. Rd2 {[%clk 0:00:12]}  Rh3 {[%clk 0:00:03]} 99. Rf2 {[%clk 0:00:11]}  Rb3+ {[%clk 0:00:03]} 100. Ka2 {[%clk 0:00:11]}  Ra3+ {[%clk 0:00:04]} 101. Kb2 {[%clk 0:00:12]}  Rb3+ {[%clk 0:00:04]} 102. Kc2 {[%clk 0:00:12]}  Ra3 {[%clk 0:00:05]} 103. Kb2 {[%clk 0:00:12]}  Rb3+ {[%clk 0:00:05]} 1/2-1/2


[Site "https://www.chess.com"]

[Event "Titled Tuesday Blitz August 15 Late 2023"]
[White "dorpato"]
[Black "olackza"]
[WhiteElo "2049"]
[BlackElo "2194"]
[Result "0-1"]
[Round "8"]
[TimeControl "180+1"]
[Date "2023.08.15"]
[WhiteClock "0:00:19"]
[BlackClock "0:00:08"]
[Board "125"]

1. e4 {[%clk 0:03:00]}  c5 {[%clk 0:02:58]} 2. Nc3 {[%clk 0:03:00]}  d6 {[%clk 0:02:53]} 3. g3 {[%clk 0:02:59]}  g6 {[%clk 0:02:52]} 4. Bg2 {[%clk 0:02:55]}  Bg7 {[%clk 0:02:53]} 5. d3 {[%clk 0:02:55]}  Nc6 {[%clk 0:02:52]} 6. Be3 {[%clk 0:02:54]}  Rb8 {[%clk 0:02:51]} 7. Qd2 {[%clk 0:02:53]}  b5 {[%clk 0:02:51]} 8. Nf3 {[%clk 0:02:50]}  b4 {[%clk 0:02:47]} 9. Ne2 {[%clk 0:02:50]}  Bxb2 {[%clk 0:02:42]} 10. Rb1 {[%clk 0:02:48]}  Bg7 {[%clk 0:02:40]} 11. O-O {[%clk 0:02:47]}  Nf6 {[%clk 0:02:40]} 12. h3 {[%clk 0:02:48]}  a5 {[%clk 0:02:32]} 13. Bh6 {[%clk 0:02:47]}  O-O {[%clk 0:02:30]} 14. Bxg7 {[%clk 0:02:39]}  Kxg7 {[%clk 0:02:31]} 15. g4 {[%clk 0:02:39]}  Be6 {[%clk 0:02:15]} 16. Ra1 {[%clk 0:02:11]}  a4 {[%clk 0:02:11]} 17. Nh4 {[%clk 0:02:08]}  b3 {[%clk 0:02:00]} 18. cxb3 {[%clk 0:02:07]}  axb3 {[%clk 0:02:01]} 19. axb3 {[%clk 0:02:05]}  Rxb3 {[%clk 0:01:48]} 20. f4 {[%clk 0:01:55]}  Qb6 {[%clk 0:01:42]} 21. Kh1 {[%clk 0:01:49]}  Qb4 {[%clk 0:01:31]} 22. Qe3 {[%clk 0:01:41]}  c4 {[%clk 0:00:56]} 23. Rad1 {[%clk 0:01:19]}  cxd3 {[%clk 0:00:56]} 24. Nd4 {[%clk 0:01:15]}  Qxd4 {[%clk 0:00:48]} 25. Qg3 {[%clk 0:01:09]}  d2 {[%clk 0:00:43]} 26. Bf3 {[%clk 0:01:09]}  Nxe4 {[%clk 0:00:41]} 27. Qg2 {[%clk 0:01:09]}  Bd5 {[%clk 0:00:32]} 28. f5 {[%clk 0:01:00]}  Nf6 {[%clk 0:00:22]} 29. Bxd5 {[%clk 0:00:57]}  Qxd5 {[%clk 0:00:22]} 30. Qxd5 {[%clk 0:00:51]}  Nxd5 {[%clk 0:00:23]} 31. Rxd2 {[%clk 0:00:51]}  Rxh3+ {[%clk 0:00:23]} 32. Kg2 {[%clk 0:00:51]}  Rxh4 {[%clk 0:00:22]} 33. Kg3 {[%clk 0:00:50]}  Ne3 {[%clk 0:00:18]} 34. Re1 {[%clk 0:00:44]}  Rxg4+ {[%clk 0:00:15]} 35. Kf3 {[%clk 0:00:43]}  Ne5+ {[%clk 0:00:12]} 36. Kxe3 {[%clk 0:00:42]}  Nc4+ {[%clk 0:00:12]} 37. Kf3 {[%clk 0:00:40]}  Nxd2+ {[%clk 0:00:11]} 38. Kxg4 {[%clk 0:00:41]}  gxf5+ {[%clk 0:00:10]} 39. Kxf5 {[%clk 0:00:41]}  e6+ {[%clk 0:00:11]} 40. Kg5 {[%clk 0:00:40]}  f6+ {[%clk 0:00:11]} 41. Kh5 {[%clk 0:00:39]}  Kf7 {[%clk 0:00:09]} 42. Kh6 {[%clk 0:00:39]}  d5 {[%clk 0:00:08]} 43. Kxh7 {[%clk 0:00:37]}  Ne4 {[%clk 0:00:09]} 44. Rg1 {[%clk 0:00:19]}  Ng5+ {[%clk 0:00:07]} 45. Rxg5 {[%clk 0:00:19]}  fxg5 {[%clk 0:00:07]} 46. Kh6 {[%clk 0:00:20]}  Rg8 {[%clk 0:00:06]} 47. Kh7 {[%clk 0:00:19]}  g4 {[%clk 0:00:06]} 48. Kh6 {[%clk 0:00:19]}  g3 {[%clk 0:00:07]} 49. Kh5 {[%clk 0:00:20]}  g2 {[%clk 0:00:08]} 50. Kh6 {[%clk 0:00:19]}  g1=Q {[%clk 0:00:08]} 0-1


[Site "https://www.chess.com"]

[Event "Titled Tuesday Blitz August 15 Late 2023"]
[White "Bongo Akanga Ndjila, Barthelemy"]
[Black "Petersson, Kjell"]
[WhiteFideId "10609431"]
[BlackFideId "1705148"]
[WhiteElo "2036"]
[BlackElo "2174"]
[Result "1/2-1/2"]
[Round "8"]
[TimeControl "180+1"]
[Date "2023.08.15"]
[WhiteClock "0:00:13"]
[BlackClock "0:00:03"]
[Board "126"]

1. d4 {[%clk 0:02:50]}  f5 {[%clk 0:02:59]} 2. Bg5 {[%clk 0:02:39]}  h6 {[%clk 0:02:58]} 3. Bh4 {[%clk 0:02:38]}  c5 {[%clk 0:02:59]} 4. dxc5 {[%clk 0:02:25]}  Qa5+ {[%clk 0:02:49]} 5. Nc3 {[%clk 0:02:23]}  g5 {[%clk 0:02:49]} 6. e4 {[%clk 0:02:11]}  gxh4 {[%clk 0:02:47]} 7. Qh5+ {[%clk 0:02:10]}  Kd8 {[%clk 0:02:47]} 8. O-O-O {[%clk 0:02:09]}  Bg7 {[%clk 0:02:24]} 9. Nge2 {[%clk 0:02:01]}  Qa6 {[%clk 0:01:35]} 10. Nd4 {[%clk 0:01:58]}  Qf6 {[%clk 0:01:22]} 11. exf5 {[%clk 0:01:46]}  Qg5+ {[%clk 0:01:22]} 12. Qxg5 {[%clk 0:01:38]}  hxg5 {[%clk 0:01:22]} 13. Ne6+ {[%clk 0:01:38]}  Ke8 {[%clk 0:01:15]} 14. Nc7+ {[%clk 0:01:38]}  Kf7 {[%clk 0:01:16]} 15. Nxa8 {[%clk 0:01:37]}  Be5 {[%clk 0:01:08]} 16. Bc4+ {[%clk 0:01:36]}  Kg7 {[%clk 0:01:00]} 17. Rhe1 {[%clk 0:01:34]}  Nc6 {[%clk 0:00:59]} 18. Nd5 {[%clk 0:01:28]}  Nf6 {[%clk 0:00:54]} 19. Nac7 {[%clk 0:01:25]}  d6 {[%clk 0:00:42]} 20. cxd6 {[%clk 0:01:21]}  exd6 {[%clk 0:00:40]} 21. Nxf6 {[%clk 0:01:19]}  Kxf6 {[%clk 0:00:38]} 22. Ne6 {[%clk 0:01:13]}  Kxf5 {[%clk 0:00:34]} 23. f4 {[%clk 0:00:55]}  gxf4 {[%clk 0:00:26]} 24. Nc7 {[%clk 0:00:48]}  Rh7 {[%clk 0:00:25]} 25. Nd5 {[%clk 0:00:48]}  Rg7 {[%clk 0:00:24]} 26. g3 {[%clk 0:00:46]}  hxg3 {[%clk 0:00:23]} 27. hxg3 {[%clk 0:00:45]}  Rxg3 {[%clk 0:00:24]} 28. Rf1 {[%clk 0:00:44]}  Nd4 {[%clk 0:00:23]} 29. c3 {[%clk 0:00:42]}  Nc6 {[%clk 0:00:22]} 30. Bd3+ {[%clk 0:00:39]}  Kg5 {[%clk 0:00:21]} 31. Rg1 {[%clk 0:00:38]}  Bg4 {[%clk 0:00:20]} 32. Rdf1 {[%clk 0:00:28]}  Rxg1 {[%clk 0:00:17]} 33. Rxg1 {[%clk 0:00:28]}  Kh4 {[%clk 0:00:17]} 34. Bf1 {[%clk 0:00:19]}  f3 {[%clk 0:00:16]} 35. Kd2 {[%clk 0:00:18]}  f2 {[%clk 0:00:12]} 36. Rh1+ {[%clk 0:00:17]}  Kg3 {[%clk 0:00:11]} 37. Rh6 {[%clk 0:00:11]}  Bf4+ {[%clk 0:00:09]} 38. Nxf4 {[%clk 0:00:09]}  Kxf4 {[%clk 0:00:10]} 39. Rf6+ {[%clk 0:00:09]}  Kg3 {[%clk 0:00:10]} 40. Ke3 {[%clk 0:00:08]}  Ne5 {[%clk 0:00:10]} 41. Rxf2 {[%clk 0:00:08]}  Be6 {[%clk 0:00:07]} 42. Rg2+ {[%clk 0:00:07]}  Kh4 {[%clk 0:00:06]} 43. Rg7 {[%clk 0:00:08]}  Ng4+ {[%clk 0:00:06]} 44. Kd3 {[%clk 0:00:08]}  Bd5 {[%clk 0:00:06]} 45. Rxb7 {[%clk 0:00:09]}  Bxb7 {[%clk 0:00:05]} 46. Kd4 {[%clk 0:00:09]}  Bc6 {[%clk 0:00:05]} 47. c4 {[%clk 0:00:10]}  Nf6 {[%clk 0:00:05]} 48. Bd3 {[%clk 0:00:11]}  Kg4 {[%clk 0:00:04]} 49. b4 {[%clk 0:00:12]}  Kf4 {[%clk 0:00:04]} 50. b5 {[%clk 0:00:13]}  Bb7 {[%clk 0:00:04]} 51. a4 {[%clk 0:00:14]}  Kf3 {[%clk 0:00:03]} 52. a5 {[%clk 0:00:14]}  Nd7 {[%clk 0:00:03]} 53. c5 {[%clk 0:00:14]}  dxc5+ {[%clk 0:00:03]} 54. Kc4 {[%clk 0:00:12]}  Ke3 {[%clk 0:00:04]} 55. Bf5 {[%clk 0:00:12]}  Ne5+ {[%clk 0:00:04]} 56. Kxc5 {[%clk 0:00:12]}  Nd3+ {[%clk 0:00:03]} 57. Kd6 {[%clk 0:00:11]}  Nb4 {[%clk 0:00:03]} 58. Kc7 {[%clk 0:00:12]}  Bd5 {[%clk 0:00:03]} 59. b6 {[%clk 0:00:12]}  axb6 {[%clk 0:00:04]} 60. axb6 {[%clk 0:00:12]}  Nd3 {[%clk 0:00:03]} 61. b7 {[%clk 0:00:12]}  Bxb7 {[%clk 0:00:03]} 62. Kxb7 {[%clk 0:00:13]} 1/2-1/2


[Site "https://www.chess.com"]

[Event "Titled Tuesday Blitz August 15 Late 2023"]
[White "Quispe Santacruz, Javier"]
[Black "Vargas, Mauricio"]
[WhiteFideId "3800920"]
[BlackFideId "4404572"]
[WhiteElo "2138"]
[BlackElo "1880"]
[Result "1-0"]
[Round "8"]
[TimeControl "180+1"]
[Date "2023.08.15"]
[WhiteClock "0:01:53"]
[BlackClock "0:00:00"]
[Board "127"]

1. d4 {[%clk 0:02:53]}  d5 {[%clk 0:02:58]} 2. c4 {[%clk 0:02:53]}  c6 {[%clk 0:02:47]} 3. Nf3 {[%clk 0:02:52]}  e6 {[%clk 0:02:44]} 4. Nc3 {[%clk 0:02:50]}  dxc4 {[%clk 0:02:39]} 5. a4 {[%clk 0:02:49]}  Bb4 {[%clk 0:02:37]} 6. e4 {[%clk 0:02:48]}  b5 {[%clk 0:02:01]} 7. Be2 {[%clk 0:02:41]}  Bb7 {[%clk 0:01:33]} 8. O-O {[%clk 0:02:38]}  Qc7 {[%clk 0:01:07]} 9. axb5 {[%clk 0:02:33]}  Bxc3 {[%clk 0:01:06]} 10. bxc3 {[%clk 0:02:34]}  cxb5 {[%clk 0:01:04]} 11. e5 {[%clk 0:02:18]}  a6 {[%clk 0:01:01]} 12. Nd2 {[%clk 0:02:15]}  Nd7 {[%clk 0:00:52]} 13. Bf3 {[%clk 0:02:12]}  Ne7 {[%clk 0:00:50]} 14. Re1 {[%clk 0:02:07]}  Nd5 {[%clk 0:00:48]} 15. Ne4 {[%clk 0:02:06]}  O-O {[%clk 0:00:42]} 16. Bd2 {[%clk 0:02:03]}  f6 {[%clk 0:00:25]} 17. exf6 {[%clk 0:02:00]}  N7xf6 {[%clk 0:00:21]} 18. Ng5 {[%clk 0:01:59]}  Rfe8 {[%clk 0:00:11]} 19. Nxe6 {[%clk 0:01:57]}  Qc8 {[%clk 0:00:00]} 20. Nc5 {[%clk 0:01:53]} 1-0


[Site "https://www.chess.com"]

[Event "Titled Tuesday Blitz August 15 Late 2023"]
[White "Joubert, Dantelle"]
[Black "Burke, Paul"]
[WhiteFideId "14310813"]
[BlackFideId "2605767"]
[WhiteElo "2062"]
[BlackElo "1840"]
[Result "1-0"]
[Round "8"]
[TimeControl "180+1"]
[Date "2023.08.15"]
[WhiteClock "0:00:15"]
[BlackClock "0:00:03"]
[Board "128"]

1. e4 {[%clk 0:03:00]}  e5 {[%clk 0:02:58]} 2. Nf3 {[%clk 0:02:59]}  Nc6 {[%clk 0:02:57]} 3. Nc3 {[%clk 0:02:59]}  Be7 {[%clk 0:02:57]} 4. a3 {[%clk 0:02:56]}  d6 {[%clk 0:02:56]} 5. d4 {[%clk 0:02:55]}  exd4 {[%clk 0:02:56]} 6. Nxd4 {[%clk 0:02:55]}  Nf6 {[%clk 0:02:56]} 7. Nxc6 {[%clk 0:02:53]}  bxc6 {[%clk 0:02:55]} 8. Bd3 {[%clk 0:02:49]}  O-O {[%clk 0:02:55]} 9. O-O {[%clk 0:02:49]}  Bg4 {[%clk 0:02:39]} 10. f3 {[%clk 0:02:45]}  Bh5 {[%clk 0:02:39]} 11. Bc4 {[%clk 0:02:41]}  h6 {[%clk 0:02:12]} 12. Be3 {[%clk 0:02:38]}  Qd7 {[%clk 0:01:54]} 13. Qd2 {[%clk 0:02:34]}  Kh7 {[%clk 0:01:48]} 14. Rad1 {[%clk 0:02:31]}  a5 {[%clk 0:01:21]} 15. a4 {[%clk 0:02:26]}  Rab8 {[%clk 0:01:18]} 16. b3 {[%clk 0:02:26]}  Ne8 {[%clk 0:01:14]} 17. Qf2 {[%clk 0:02:06]}  Bf6 {[%clk 0:01:09]} 18. Ne2 {[%clk 0:02:03]}  Bg6 {[%clk 0:01:00]} 19. Bd4 {[%clk 0:01:51]}  Qe7 {[%clk 0:00:59]} 20. Nf4 {[%clk 0:01:46]}  Bxd4 {[%clk 0:00:57]} 21. Qxd4 {[%clk 0:01:46]}  Qe5 {[%clk 0:00:54]} 22. Nxg6 {[%clk 0:01:43]}  Qxd4+ {[%clk 0:00:49]} 23. Rxd4 {[%clk 0:01:40]}  fxg6 {[%clk 0:00:49]} 24. Be6 {[%clk 0:01:37]}  Nf6 {[%clk 0:00:46]} 25. Bc4 {[%clk 0:01:33]}  Rbd8 {[%clk 0:00:44]} 26. Rfd1 {[%clk 0:01:33]}  Rfe8 {[%clk 0:00:40]} 27. g3 {[%clk 0:01:26]}  Nd7 {[%clk 0:00:36]} 28. Bf1 {[%clk 0:01:20]}  Ne5 {[%clk 0:00:35]} 29. Bg2 {[%clk 0:01:20]}  c5 {[%clk 0:00:35]} 30. Rd5 {[%clk 0:01:16]}  Nc6 {[%clk 0:00:34]} 31. R5d2 {[%clk 0:00:56]}  Nd4 {[%clk 0:00:33]} 32. Kf2 {[%clk 0:00:53]}  Rb8 {[%clk 0:00:31]} 33. Bf1 {[%clk 0:00:51]}  Re7 {[%clk 0:00:29]} 34. Bc4 {[%clk 0:00:50]}  Nc6 {[%clk 0:00:29]} 35. Ke3 {[%clk 0:00:44]}  Ne5 {[%clk 0:00:28]} 36. Bb5 {[%clk 0:00:41]}  c6 {[%clk 0:00:25]} 37. Be2 {[%clk 0:00:38]}  Nf7 {[%clk 0:00:23]} 38. Bc4 {[%clk 0:00:38]}  Ne5 {[%clk 0:00:21]} 39. Be2 {[%clk 0:00:36]}  Nf7 {[%clk 0:00:21]} 40. Bc4 {[%clk 0:00:30]}  Ne5 {[%clk 0:00:21]} 41. Rxd6 {[%clk 0:00:29]}  Nxc4+ {[%clk 0:00:20]} 42. bxc4 {[%clk 0:00:30]}  Rb2 {[%clk 0:00:19]} 43. Rxc6 {[%clk 0:00:28]}  Rxc2 {[%clk 0:00:18]} 44. Rxc5 {[%clk 0:00:28]}  Ra2 {[%clk 0:00:18]} 45. Rxa5 {[%clk 0:00:27]}  Rc7 {[%clk 0:00:18]} 46. c5 {[%clk 0:00:25]}  Rc2 {[%clk 0:00:18]} 47. Rd5 {[%clk 0:00:23]}  Rc3+ {[%clk 0:00:17]} 48. Rd3 {[%clk 0:00:21]}  Rc2 {[%clk 0:00:17]} 49. h4 {[%clk 0:00:19]}  R2xc5 {[%clk 0:00:16]} 50. Rxc5 {[%clk 0:00:19]}  Rxc5 {[%clk 0:00:17]} 51. Ra3 {[%clk 0:00:20]}  Ra5 {[%clk 0:00:16]} 52. Kd4 {[%clk 0:00:20]}  Kg8 {[%clk 0:00:16]} 53. Kc4 {[%clk 0:00:19]}  Kf7 {[%clk 0:00:16]} 54. Kb4 {[%clk 0:00:19]}  Ra7 {[%clk 0:00:16]} 55. a5 {[%clk 0:00:19]}  Ke7 {[%clk 0:00:17]} 56. Kb5 {[%clk 0:00:19]}  Kd6 {[%clk 0:00:16]} 57. Kb6 {[%clk 0:00:19]}  Ra8 {[%clk 0:00:16]} 58. Rd3+ {[%clk 0:00:16]}  Ke5 {[%clk 0:00:16]} 59. Rd5+ {[%clk 0:00:16]}  Ke6 {[%clk 0:00:15]} 60. a6 {[%clk 0:00:16]}  Rb8+ {[%clk 0:00:15]} 61. Kc7 {[%clk 0:00:16]}  Rb2 {[%clk 0:00:14]} 62. Ra5 {[%clk 0:00:16]}  Rc2+ {[%clk 0:00:13]} 63. Kd8 {[%clk 0:00:15]}  Rd2+ {[%clk 0:00:12]} 64. Ke8 {[%clk 0:00:15]}  Rb2 {[%clk 0:00:03]} 65. a7 {[%clk 0:00:15]} 1-0


[Site "https://www.chess.com"]